bitfinex-derivatives/quotes_SOLF0:USTF0_20250730
["timestamp","ask_amount","ask_price","bid_price","bid_amount"]
[1753883699320,3.27,177.57,177.52,3.01]
[1753883699616,3.27,177.58,177.5,3.01]
[1753883700118,3.27,177.58,177.51,3.01]
[1753883700613,131.28678793,177.72,177.56,5.86886312]
[1753883700614,3.27,177.71,177.56,5.86886312]
[1753883700813,3.27,177.7,177.58,5.86886312]
[1753883701014,5.6288,177.66,177.59,3.01]
[1753883701313,5.86886312,177.69,177.61,3.01]
[1753883701314,3.27,177.67,177.61,3.01]
[1753883701708,3.27,177.65,177.63,3.01]
[1753883702211,3.27,177.67,177.65,3.01]
[1753883702518,3.27,177.71,177.63,3.01]
[1753883702720,3.27,177.71,177.68,5.6279]
[1753883703013,3.27,177.71,177.66,3.01]
[1753883703316,3.27,177.69,177.66,8.6386]
[1753883703618,3.27,177.68,177.66,3.01]
[1753883703806,5.86886312,177.73,177.66,3.01]
[1753883704007,5.86886312,177.71,177.63,3.01]
[1753883704205,3.27,177.7,177.63,3.01]
[1753883704412,5.86886312,177.71,177.65,3.01]
[1753883704616,3.27,177.7,177.65,3.01]
[1753883704816,5.6285,177.67,177.65,3.01]
[1753883705017,3.27,177.66,177.65,3.01]
[1753883705712,5.86886312,177.71,177.62,5.86886312]
[1753883705713,3.27,177.69,177.63,3.01]
[1753883705912,5.86886312,177.75,177.64,5.86886312]
[1753883706108,3.27,177.74,177.68,5.6277]
[1753883706309,3.27,177.74,177.64,5.86886312]
[1753883706509,8.8969,177.72,177.7,3.01]
[1753883706714,3.27,177.72,177.7,3.01]
[1753883707008,3.27,177.74,177.67,3.01]
[1753883707718,3.27,177.74,177.71,5.6268]
[1753883708014,3.27,177.74,177.73,3.01]
[1753883708618,3.27,177.74,177.69,3.09]
[1753883708808,5.6269,177.72,177.69,8.7176]
[1753883709008,5.6269,177.72,177.66,5.86886312]
[1753883709009,2.99,177.72,177.66,5.86886312]
[1753883709207,2.99,177.72,177.71,3.09]
[1753883709508,2.99,177.72,177.63,106.04]
[1753883709509,2.99,177.75,177.73,3.09]
[1753883709911,2.99,177.74,177.73,3.09]
[1753883710113,2.99,177.74,177.69,3.09]
[1753883710317,2.99,177.7,177.64,3.09]
[1753883711114,8.6185,177.67,177.65,3.09]
[1753883711318,2.99,177.66,177.65,3.09]
[1753883711515,8.6186,177.66,177.65,3.09]
[1753883711720,5.86886312,177.69,177.63,3.09]
[1753883711913,2.99,177.66,177.57,3.09]
[1753883712220,5.86886312,177.67,177.57,3.09]
[1753883712412,5.86886312,177.76,177.6,5.86886312]
[1753883712413,2.99,177.68,177.6,5.86886312]
[1753883712613,2.99,177.68,177.55,347.06]
[1753883712614,2.99,177.68,177.61,3.09]
[1753883713213,2.99,177.66,177.59,3.09]
[1753883713418,2.99,177.68,177.61,3.09]
[1753883713820,5.86886312,177.71,177.63,5.6293]
[1753883714114,2.99,177.67,177.6,5.86886312]
[1753883714311,2.99,177.65,177.63,5.6295]
[1753883714514,2.99,177.67,177.65,3.09]
[1753883714817,2.99,177.67,177.66,3.09]
[1753883715222,8.6184,177.67,177.66,3.09]
[1753883715617,2.99,177.67,177.59,3.09]
[1753883715810,5.6288,177.66,177.62,5.6296]
[1753883716014,5.86886312,177.67,177.63,3.09]
[1753883716214,2.99,177.66,177.63,3.09]
[1753883716411,2.99,177.65,177.63,3.09]
[1753883717020,2.99,177.64,177.63,3.09]
[1753883717218,8.6192,177.64,177.63,3.09]
[1753883717417,2.99,177.66,177.58,5.86886312]
[1753883717617,8.6191,177.65,177.61,5.63]
[1753883717811,5.6291,177.65,177.62,3.09]
[1753883718009,5.86886312,177.68,177.59,3.09]
[1753883718224,5.86886312,177.68,177.61,5.6301]
[1753883718416,2.99,177.67,177.61,5.6301]
[1753883718616,5.86886312,177.68,177.61,5.6301]
[1753883718617,5.6295,177.64,177.61,8.7201]
[1753883718918,2.99,177.65,177.61,3.09]
[1753883719518,5.86886312,177.66,177.63,3.09]
[1753883719716,2.99,177.65,177.63,3.09]
[1753883719912,2.99,177.62,177.6,3.09]
[1753883720117,2.99,177.61,177.6,3.09]
[1753883720320,5.86886312,177.64,177.57,3.09]
[1753883720621,5.86886312,177.68,177.57,3.09]
[1753883720819,5.86886312,177.68,177.59,3.09]
[1753883721023,2.99,177.75,177.66,5.86886312]
[1753883721215,2.99,177.75,177.67,3.09]
[1753883722218,8.6166,177.73,177.69,5.6275]
[1753883722423,2.99,177.73,177.71,3.09]
[1753883722623,2.99,177.73,177.72,3.09]
[1753883722922,5.6263,177.74,177.72,3.09]
[1753883723119,8.6163,177.74,177.72,3.09]
[1753883723314,2.99,177.74,177.72,3.09]
[1753883723518,8.6164,177.73,177.69,5.6275]
[1753883723822,2.99,177.73,177.71,3.09]
[1753883724019,2.99,177.77,177.72,3.09]
[1753883724223,2.99,177.77,177.7,3.09]
[1753883724418,2.99,177.75,177.67,3.09]
[1753883724725,2.99,177.73,177.65,3.09]
[1753883725123,5.86886312,177.7,177.63,3.09]
[1753883725334,5.86886312,177.64,177.56,3.09]
[1753883725522,2.99,177.63,177.56,3.09]
[1753883726423,5.6302,177.62,177.56,3.09]
[1753883726623,2.99,177.63,177.56,3.09]
[1753883726927,5.629,177.65,177.61,5.6302]
[1753883727224,2.99,177.69,177.61,3.09]
[1753883727419,2.99,177.69,177.63,3.09]
[1753883728428,2.99,177.69,177.66,5.6286]
[1753883728628,2.99,177.71,177.69,3.09]
[1753883729327,2.99,177.71,177.63,3.09]
[1753883729528,2.99,177.72,177.66,3.09]
[1753883730029,5.86886312,177.76,177.7,3.09]
[1753883730220,2.99,177.75,177.7,3.09]
[1753883731222,5.86886312,177.76,177.7,3.09]
[1753883731417,2.99,177.72,177.7,3.09]
[1753883731722,2.99,177.72,177.71,3.09]
[1753883732028,5.86886312,177.76,177.71,3.09]
[1753883732229,2.99,177.75,177.71,3.09]
[1753883733126,2.99,177.72,177.71,3.09]
[1753883733431,2.99,177.75,177.69,3.09]
[1753883733728,2.99,177.7,177.66,5.6284]
[1753883733924,2.99,177.7,177.68,3.09]
[1753883734324,2.99,177.7,177.67,3.09]
[1753883734523,2.99,177.7,177.68,3.09]
[1753883735724,5.6268,177.72,177.67,5.6282]
[1753883735929,2.99,177.74,177.68,3.09]
[1753883736325,2.99,177.74,177.68,8.718]
[1753883736524,2.99,177.74,177.69,3.09]
[1753883736725,2.99,177.77,177.69,3.09]
[1753883736925,5.626,177.75,177.71,3.09]
[1753883737229,2.99,177.77,177.71,3.09]
[1753883737826,2.99,177.73,177.68,3.09]
[1753883738031,5.6285,177.67,177.62,5.6298]
[1753883738230,2.99,177.67,177.6,106.04]
[1753883738432,2.99,177.69,177.62,3.31]
[1753883738632,5.628,177.68,177.62,3.31]
[1753883739029,8.85886312,177.72,177.63,5.86886312]
[1753883739230,5.6274,177.7,177.65,5.6287]
[1753883739430,2.99,177.75,177.66,3.31]
[1753883739627,2.99,177.75,177.68,3.31]
[1753883739827,8.616,177.75,177.7,5.6271]
[1753883740032,8.616,177.75,177.72,3.31]
[1753883740324,2.99,177.75,177.72,3.31]
[1753883740529,5.86886312,177.78,177.72,3.31]
[1753883740725,2.99,177.74,177.72,3.31]
[1753883741329,2.99,177.74,177.73,3.31]
[1753883741528,2.99,177.74,177.71,3.31]
[1753883741729,8.6161,177.74,177.69,5.6276]
[1753883741924,8.6161,177.74,177.7,3.31]
[1753883742135,8.6166,177.73,177.71,3.31]
[1753883742334,2.99,177.73,177.71,3.31]
[1753883742530,2.99,177.75,177.67,5.6281]
[1753883742730,2.99,177.75,177.67,8.9381]
[1753883742931,5.627,177.72,177.67,5.6281]
[1753883743126,2.99,177.74,177.69,3.31]
[1753883743332,5.86886312,177.76,177.69,3.31]
[1753883743333,2.99,177.75,177.69,3.31]
[1753883743932,2.99,177.75,177.69,8.9377]
[1753883744134,2.99,177.75,177.7,3.31]
[1753883744833,2.99,177.77,177.68,3.31]
[1753883745335,5.86886312,177.76,177.68,3.31]
[1753883745540,2.99,177.75,177.68,3.31]
[1753883745936,5.6271,177.71,177.68,3.31]
[1753883746137,2.99,177.7,177.68,3.31]
[1753883746642,2.99,177.7,177.66,5.6285]
[1753883746843,2.99,177.7,177.69,3.31]
[1753883747238,2.99,177.7,177.68,3.31]
[1753883747635,5.6268,177.72,177.66,3.31]
[1753883747837,5.86886312,177.78,177.68,3.31]
[1753883748031,5.6263,177.74,177.67,5.86886312]
[1753883748234,2.99,177.76,177.7,3.31]
[1753883748434,2.99,177.78,177.74,3.31]
[1753883748734,2.99,177.78,177.73,5.86886312]
[1753883748939,2.99,177.78,177.74,3.31]
[1753883749142,8.615,177.78,177.74,3.31]
[1753883749348,2.99,177.77,177.75,3.31]
[1753883749644,2.99,177.81,177.73,5.86886312]
[1753883749838,2.99,177.81,177.72,3.31]
[1753883750240,2.99,177.75,177.73,3.31]
[1753883750441,2.99,177.78,177.72,3.31]
[1753883750841,2.99,177.81,177.72,3.31]
[1753883751041,5.86886312,177.78,177.69,9.57914577]
[1753883751240,5.86886312,177.78,177.69,3.31]
[1753883751241,2.99,177.77,177.69,3.31]
[1753883752043,2.99,177.72,177.7,3.31]
[1753883752245,2.99,177.72,177.71,3.31]
[1753883753243,8.6162,177.74,177.71,3.31]
[1753883753445,2.99,177.74,177.68,3.31]
[1753883753648,2.99,177.77,177.7,3.31]
[1753883754644,2.99,177.79,177.71,3.31]
[1753883755040,5.6254,177.77,177.73,5.6264]
[1753883755343,5.86886312,177.81,177.74,3.31]
[1753883755344,2.99,177.81,177.74,3.31]
[1753883755644,5.625,177.78,177.73,5.6261]
[1753883755846,2.99,177.77,177.75,3.31]
[1753883757144,5.6242,177.8,177.75,3.31]
[1753883757344,5.86886312,177.85,177.74,5.86886312]
[1753883757546,2.99,177.84,177.75,3.31]
[1753883757750,5.86886312,177.83,177.75,3.31]
[1753883757951,2.99,177.77,177.75,3.31]
[1753883758250,2.99,177.77,177.72,5.86886312]
[1753883758251,5.6247,177.79,177.76,3.31]
[1753883758445,2.99,177.82,177.77,3.31]
[1753883758744,5.6251,177.78,177.73,5.6262]
[1753883758942,2.99,177.77,177.75,3.31]
[1753883759143,2.99,177.77,177.76,3.31]
[1753883759349,5.625,177.78,177.75,3.31]
[1753883759641,8.615,177.78,177.74,5.6259]
[1753883759845,8.615,177.78,177.76,3.31]
[1753883760451,22.57789474,177.91,177.72,111.82886312]
[1753883760452,2.99,177.87,177.75,3.31]
[1753883760652,2.99,177.85,177.77,5.625]
[1753883760858,5.86886312,177.88,177.78,9.17886312]
[1753883761055,2.99,177.87,177.79,3.31]
[1753883761249,2.99,177.87,177.8,3.31]
[1753883761555,11.2408,177.93,177.83,3.31]
[1753883761556,2.99,177.9,177.83,3.31]
[1753883761859,2.99,177.89,177.87,3.31]
[1753883762056,5.86886312,177.91,177.83,3.31]
[1753883762353,2.99,177.84,177.81,3.31]
[1753883762559,2.99,177.83,177.81,3.31]
[1753883762753,2.99,177.83,177.8,5.86886312]
[1753883762958,2.99,177.84,177.82,3.31]
[1753883763458,5.6231,177.84,177.79,8.9343]
[1753883763658,5.6231,177.84,177.79,3.31]
[1753883763659,2.99,177.82,177.79,3.31]
[1753883763855,5.86886312,177.85,177.77,105.96]
[1753883764158,2.99,177.79,177.77,109.27]
[1753883764359,2.99,177.78,177.77,105.96]
[1753883764556,2.99,177.77,177.73,3.31]
[1753883764755,5.86886312,177.79,177.73,3.31]
[1753883764954,2.99,177.78,177.73,3.31]
[1753883765255,2.99,177.75,177.73,3.31]
[1753883766760,5.6261,177.75,177.71,8.9368]
[1753883766958,2.99,177.76,177.69,3.31]
[1753883767350,5.627,177.72,177.69,3.31]
[1753883767554,8.617,177.72,177.7,3.31]
[1753883767763,2.99,177.76,177.67,455.97]
[1753883768458,8.7671,177.71,177.68,3.12]
[1753883768653,3.14,177.71,177.69,3.12]
[1753883769062,8.7671,177.71,177.69,3.12]
[1753883769264,5.86886312,177.75,177.67,455.78]
[1753883769459,3.14,177.69,177.67,455.78]
[1753883769765,3.14,177.72,177.67,105.94]
[1753883770066,5.628,177.68,177.67,105.94]
[1753883770363,3.14,177.7,177.67,109.06]
[1753883770552,3.14,177.69,177.67,109.06]
[1753883770952,3.14,177.79,177.68,3.12]
[1753883771166,3.14,177.74,177.68,3.12]
[1753883771355,3.14,177.74,177.68,8.7478]
[1753883771956,3.14,177.74,177.68,3.12]
[1753883772169,3.14,177.74,177.67,109.06]
[1753883772460,5.86886312,177.75,177.67,109.06]
[1753883772663,3.14,177.7,177.65,3.12]
[1753883773659,5.6286,177.67,177.65,3.12]
[1753883773862,3.14,177.66,177.64,3.12]
[1753883774166,3.14,177.69,177.63,3.12]
[1753883775664,9.00886312,177.71,177.63,3.12]
[1753883775862,3.14,177.71,177.63,3.12]
[1753883776058,5.6274,177.7,177.63,3.12]
[1753883776265,5.6274,177.7,177.64,3.12]
[1753883776658,3.14,177.71,177.64,3.12]
[1753883777058,3.14,177.71,177.67,5.6281]
[1753883777059,8.7672,177.71,177.67,5.6281]
[1753883777260,3.14,177.7,177.68,3.12]
[1753883777967,3.14,177.72,177.66,3.12]
[1753883778362,5.6276,177.7,177.67,5.6281]
[1753883778565,8.7676,177.7,177.68,3.12]
[1753883778862,5.6282,177.68,177.63,3.12]
[1753883779066,3.14,177.67,177.65,3.12]
[1753883779362,5.6278,177.69,177.65,5.6287]
[1753883779563,8.7678,177.69,177.65,5.6287]
[1753883779766,3.14,177.68,177.62,118.07800889]
[1753883779961,5.6285,177.67,177.63,5.6294]
[1753883780161,3.14,177.66,177.64,3.12]
[1753883780961,3.14,177.66,177.64,8.7492]
[1753883781168,3.14,177.68,177.65,3.12]
[1753883781378,3.14,177.67,177.62,105.94]
[1753883781666,3.14,177.66,177.6,3.12]
[1753883781874,3.14,177.66,177.59,3.12]
[1753883782168,5.6299,177.63,177.59,5.6308]
[1753883782368,3.14,177.62,177.6,3.12]
[1753883782565,3.14,177.66,177.6,3.12]
[1753883782871,3.14,177.61,177.58,105.96]
[1753883783064,5.86886312,177.63,177.58,109.08]
[1753883783457,3.14,177.6,177.58,109.08]
[1753883783659,3.14,177.62,177.6,3.12]
[1753883783967,8.7699,177.62,177.6,3.12]
[1753883784168,3.14,177.65,177.61,3.12]
[1753883784467,3.14,177.64,177.62,3.12]
[1753883784868,3.14,177.63,177.62,3.12]
[1753883785061,3.14,177.64,177.58,105.96]
[1753883785262,5.6305,177.61,177.58,105.96]
[1753883785459,3.14,177.6,177.58,109.08]
[1753883786070,3.14,177.62,177.58,105.96]
[1753883786663,5.6308,177.6,177.58,105.96]
[1753883786857,8.7708,177.6,177.58,109.08]
[1753883787267,3.14,177.6,177.58,109.08]
[1753883787664,3.14,177.59,177.58,105.96]
[1753883788071,3.14,177.59,177.58,109.08]
[1753883788367,5.86886312,177.63,177.58,109.08]
[1753883788575,3.14,177.62,177.58,109.08]
[1753883788974,8.7703,177.61,177.58,109.08]
[1753883789174,3.14,177.62,177.58,109.08]
[1753883789575,3.14,177.59,177.58,105.96]
[1753883790077,8.7709,177.59,177.58,105.96]
[1753883790766,8.7712,177.58,177.56,3.12]
[1753883790970,3.14,177.57,177.56,3.12]
[1753883791170,8.771,177.59,177.57,3.12]
[1753883791770,3.14,177.59,177.58,3.12]
[1753883792074,5.86886312,177.65,177.55,8.98886312]
[1753883792273,9.00886312,177.65,177.58,5.631]
[1753883792470,5.6301,177.62,177.59,3.12]
[1753883792671,8.7701,177.62,177.6,3.12]
[1753883793469,3.14,177.64,177.56,3.12]
[1753883793670,5.86886312,177.61,177.56,3.12]
[1753883793867,5.6321,177.55,177.54,105.98]
[1753883794070,3.14,177.58,177.54,105.98]
[1753883794481,3.14,177.54,177.47,352.64886312]
[1753883794774,3.14,177.54,177.52,3.12]
[1753883794978,3.14,177.53,177.48,106.0]
[1753883795174,3.14,177.52,177.51,3.12]
[1753883795777,5.86886312,177.59,177.49,3.12]
[1753883795980,3.14,177.58,177.49,3.12]
[1753883796278,8.7724,177.55,177.53,3.12]
[1753883796668,5.86886312,177.57,177.51,3.12]
[1753883796878,3.14,177.56,177.48,109.12]
[1753883797080,3.14,177.54,177.48,109.12]
[1753883797382,3.14,177.5,177.48,109.12]
[1753883797579,3.14,177.5,177.49,3.12]
[1753883797776,5.86886312,177.55,177.49,3.12]
[1753883797979,5.86886312,177.55,177.48,106.0]
[1753883798181,5.86886312,177.55,177.49,3.12]
[1753883798182,3.14,177.53,177.49,3.12]
[1753883798481,3.14,177.53,177.49,3.23]
[1753883798673,3.14,177.53,177.48,106.0]
[1753883798874,3.14,177.53,177.51,3.23]
[1753883799380,3.29,177.57,177.49,3.23]
[1753883799973,3.29,177.53,177.51,3.23]
[1753883800580,5.86886312,177.58,177.48,106.0]
[1753883800778,3.29,177.59,177.5,5.86886312]
[1753883800981,8.9214,177.58,177.53,5.6326]
[1753883801286,3.29,177.57,177.55,3.23]
[1753883801581,3.29,177.58,177.56,3.23]
[1753883801978,3.29,177.57,177.53,106.02]
[1753883802184,3.29,177.59,177.53,106.02]
[1753883802384,3.29,177.59,177.53,109.25]
[1753883802588,5.86886312,177.6,177.53,106.02]
[1753883802774,3.29,177.59,177.53,106.02]
[1753883803178,3.29,177.55,177.53,109.25]
[1753883803580,3.29,177.55,177.54,3.23]
[1753883803779,5.86886312,177.6,177.53,106.02]
[1753883803981,3.29,177.57,177.56,3.23]
[1753883804490,3.29,177.59,177.54,3.23]
[1753883805086,3.29,177.58,177.53,106.02]
[1753883805288,3.29,177.58,177.53,109.25]
[1753883805483,5.86886312,177.58,177.51,3.23]
[1753883805689,5.86886312,177.58,177.47,346.78]
[1753883805690,3.29,177.55,177.49,3.23]
[1753883806189,5.86886312,177.56,177.49,5.6338]
[1753883806387,3.29,177.52,177.5,3.23]
[1753883806896,3.29,177.51,177.5,3.23]
[1753883807390,9.15886312,177.56,177.52,3.23]
[1753883807693,3.29,177.59,177.52,3.23]
[1753883807888,3.29,177.59,177.51,111.88886312]
[1753883808194,3.29,177.62,177.56,3.23]
[1753883808387,3.29,177.62,177.57,3.23]
[1753883808583,3.29,177.62,177.59,5.6308]
[1753883808784,3.29,177.62,177.6,3.23]
[1753883809189,5.86886312,177.66,177.6,3.23]
[1753883809396,3.29,177.65,177.58,3.23]
[1753883809595,5.86886312,177.64,177.58,3.23]
[1753883809796,3.29,177.63,177.56,106.02]
[1753883810189,5.6315,177.58,177.56,106.02]
[1753883810389,3.29,177.57,177.56,106.02]
[1753883810596,3.29,177.57,177.52,3.23]
[1753883810790,3.29,177.53,177.51,109.23]
[1753883811496,3.29,177.53,177.52,3.23]
[1753883811691,3.29,177.57,177.52,3.23]
[1753883812290,3.29,177.55,177.53,3.23]
[1753883812486,3.29,177.57,177.51,106.0]
[1753883812897,5.6326,177.54,177.51,111.6333]
[1753883813201,8.9226,177.54,177.51,109.23]
[1753883813698,8.9228,177.53,177.51,109.23]
[1753883813896,5.86886312,177.56,177.51,109.23]
[1753883814198,3.29,177.53,177.51,106.0]
[1753883814399,3.29,177.53,177.51,109.23]
[1753883814694,5.6331,177.52,177.51,109.23]
[1753883815096,3.29,177.53,177.51,3.23]
[1753883815296,5.6331,177.52,177.48,106.0]
[1753883815500,8.9231,177.52,177.49,3.23]
[1753883815796,8.9231,177.52,177.5,3.23]
[1753883815998,3.29,177.5,177.48,109.23]
[1753883816494,3.29,177.5,177.49,3.23]
[1753883817099,3.29,177.5,177.48,106.0]
[1753883817397,5.86886312,177.54,177.46,3.23]
[1753883817595,3.29,177.48,177.46,3.23]
[1753883817788,3.29,177.48,177.45,106.0]
[1753883817991,3.29,177.48,177.47,3.23]
[1753883818189,3.29,177.53,177.47,3.23]
[1753883818801,3.29,177.48,177.47,3.23]
[1753883819592,3.29,177.48,177.45,106.0]
[1753883819799,3.29,177.48,177.46,3.23]
[1753883819999,3.29,177.48,177.47,3.23]
[1753883820203,3.29,177.51,177.46,3.23]
[1753883820498,3.29,177.53,177.46,3.23]
[1753883820695,3.29,177.62,177.48,5.86886312]
[1753883820897,3.29,177.59,177.51,3.23]
[1753883821098,3.29,177.59,177.53,3.23]
[1753883821297,5.6313,177.58,177.54,5.6322]
[1753883821497,5.86886312,177.62,177.53,3.23]
[1753883821695,3.29,177.61,177.54,5.86886312]
[1753883821898,127.47740089,177.69,177.59,3.23]
[1753883822103,4.03401637,177.68,177.63,3.23]
[1753883822300,3.29,177.71,177.65,3.23]
[1753883823003,3.29,177.71,177.64,111.88886312]
[1753883823004,3.29,177.75,177.67,3.23]
[1753883823201,3.29,177.75,177.69,3.23]
[1753883823505,347.08,177.82,177.71,3.23]
[1753883823506,3.29,177.78,177.71,3.23]
[1753883824006,3.29,177.75,177.72,3.23]
[1753883824202,3.29,177.74,177.7,5.86886312]
[1753883824406,3.29,177.76,177.68,3.23]
[1753883824908,3.29,177.76,177.69,3.23]
[1753883825207,5.86886312,177.87,177.68,5.86886312]
[1753883825208,3.13060638,177.87,177.68,5.62]
[1753883825509,8.517e-05,177.97,177.86,11.73772624]
[1753883825801,0.97871024,178.07,177.96,5.86886312]
[1753883825996,4.03692978,178.06,178.02,5.86886312]
[1753883826201,3.29,178.05,178.02,5.86886312]
[1753883826399,3.29,178.07,178.03,5.86886312]
[1753883826700,3.29,178.1,178.03,5.86886312]
[1753883827703,3.29,178.08,178.03,5.86886312]
[1753883828396,3.29,178.08,178.04,5.79141136]
[1753883828601,3.29,178.08,178.05,2.47141136]
[1753883828795,3.29,178.05,177.98,112.18]
[1753883829006,3.29,178.05,177.98,3.08]
[1753883829708,0.48061054,178.05,177.98,3.08]
[1753883829910,0.48061054,178.05,177.99,3.08]
[1753883830104,8.8628256,178.08,177.99,3.08]
[1753883830708,8.8628256,178.11,177.99,3.08]
[1753883831802,3.29,178.1,177.99,3.08]
[1753883832411,0.97756928,178.2,178.02,3.08]
[1753883832606,8.8628256,178.15,178.02,3.08]
[1753883832804,3.29,178.14,178.02,3.08]
[1753883832999,3.29,178.14,178.05,3.08]
[1753883833203,3.29,178.14,178.07,3.08]
[1753883833606,3.29,178.11,178.05,108.8]
[1753883833802,3.29,178.11,178.04,111.88]
[1753883834215,8.8628256,178.09,178.03,108.8]
[1753883834504,3.29,178.07,178.01,3.08]
[1753883834712,2.80663393,178.07,178.02,115.80266517]
[1753883834905,0.87127651,178.2,178.03,7.02266517]
[1753883835105,0.87127651,178.2,178.02,111.86]
[1753883835106,8.8628256,178.09,178.04,7.02266517]
[1753883835307,8.8628256,178.11,178.05,7.02266517]
[1753883835511,8.8628256,178.2,178.08,3.08]
[1753883835712,8.8628256,178.14,178.09,7.02266517]
[1753883835911,5.6147,178.11,178.1,7.02266517]
[1753883836810,8.9047,178.11,178.1,7.02266517]
[1753883837010,5.6151,178.09,178.07,108.72]
[1753883837215,5.6151,178.09,178.07,111.8]
[1753883837404,5.6151,178.09,178.08,3.08]
[1753883837805,12.1528256,178.14,178.08,3.08]
[1753883838008,3.29,178.14,178.08,3.08]
[1753883838207,8.8628256,178.15,178.08,3.08]
[1753883838918,5.6145,178.11,178.08,3.08]
[1753883839107,8.8628256,178.15,178.08,3.08]
[1753883840206,5.615,178.1,178.09,117.14585974]
[1753883840811,5.615,178.1,178.09,8.62585974]
[1753883841006,8.905,178.1,178.09,5.54585974]
[1753883841909,8.905,178.1,178.09,5.974e-05]
[1753883842106,17.7678256,178.1,178.09,5.974e-05]
[1753883843106,12.1498103,178.1,178.09,5.974e-05]
[1753883843309,8.8628256,178.1,178.0,349.6]
[1753883843610,5.6176,178.01,178.0,349.6]
[1753883844203,4.64635609,178.04,178.0,349.6]
[1753883844717,5.6176,178.01,178.0,349.6]
[1753883844903,8.8628256,178.06,178.0,346.52]
[1753883845110,3.29,178.05,178.01,3.08]
[1753883845309,3.29,178.05,178.02,3.08]
[1753883845609,5.617,178.03,178.02,3.08]
[1753883846208,5.617,178.03,178.02,8.13607215]
[1753883846412,5.617,178.03,178.02,116.51607215]
[1753883846617,3.29,178.08,178.03,3.08]
[1753883846814,8.8628256,178.09,178.05,3.08]
[1753883847013,8.8628256,178.09,178.06,5.05607215]
[1753883847318,5.6151,178.09,178.08,3.08]
[1753883847512,5.6151,178.09,178.08,116.47607215]
[1753883847817,5.6151,178.09,178.08,113.39607215]
[1753883848015,8.9051,178.09,178.08,5.05607215]
[1753883848210,8.9051,178.09,178.08,113.37607215]
[1753883850216,5.6151,178.09,178.08,117.91545452]
[1753883850617,5.6151,178.09,178.08,120.99545452]
[1753883850809,5.6148,178.1,178.09,3.08]
[1753883851005,5.6148,178.1,178.09,12.67545452]
[1753883851210,5.6148,178.1,178.09,120.81545452]
[1753883851418,5.6148,178.1,178.09,116.27607215]
[1753883851612,5.6148,178.1,178.09,120.81545452]
[1753883852306,5.6148,178.1,178.09,12.67545452]
[1753883852515,5.6145,178.11,178.09,9.59545452]